bitfinex/quotes_ETHUSD_20240630
["timestamp","ask_amount","ask_price","bid_price","bid_amount"]
[1719706693787,6.0125486,3379.4,3379.3,5.68059729]
[1719706693974,6.08928705,3379.4,3379.3,7.75202614]
[1719706695265,5.89229005,3379.4,3379.3,7.75202614]
[1719706696701,5.57005543,3379.4,3379.3,17.19278]
[1719706696897,5.57005543,3379.4,3379.3,17.48268471]
[1719706697102,5.57005543,3379.4,3379.3,18.51262232]
[1719706697408,5.57005543,3379.4,3379.3,17.48268471]
[1719706698871,5.57005543,3379.4,3379.3,18.51261617]
[1719706699312,5.49331698,3379.4,3379.3,18.51261617]
[1719706699697,5.56918981,3379.4,3379.3,18.51261617]
[1719706700375,5.56918981,3379.4,3379.3,21.33404617]
[1719706700376,0.23739226,3379.4,3379.3,21.33404617]
[1719706700607,7.33,3380.0,3379.9,10.94072]
[1719706700608,7.06,3380.0,3379.9,10.94072]
[1719706700802,19.93,3380.0,3379.9,14.49072]
[1719706701001,20.00363452,3380.0,3379.9,14.49072]
[1719706704526,20.00363452,3380.0,3379.9,16.56178]
[1719706707216,20.00363452,3380.0,3379.9,9.76318]
[1719706711297,20.00363452,3380.0,3379.9,7.69212]
[1719706713997,20.00363452,3380.0,3379.9,7.98255945]
[1719706715403,20.00363452,3380.0,3379.9,5.62106]
[1719706716633,20.00363452,3380.0,3379.9,5.07106]
[1719706716634,27.30623452,3380.0,3379.9,5.07106]
[1719706716806,27.30623452,3380.0,3379.7,2.07117]
[1719706716807,27.30623452,3380.0,3379.8,3.0]
[1719706717014,27.30623452,3380.0,3379.7,2.07113]
[1719706717239,27.30623452,3380.0,3379.8,2.62107]
[1719706717410,7.37623452,3380.0,3379.9,5.07106]
[1719706717811,7.37623452,3380.0,3379.9,3.0]
[1719706718013,7.37623452,3380.0,3379.8,5.6211]
[1719706723536,19.93,3379.9,3379.8,5.6211]
[1719706723739,20.00345121,3379.9,3379.8,5.6211]
[1719706724917,20.00345121,3379.9,3379.8,5.0711]
[1719706725118,20.00345121,3379.9,3379.8,2.0711]
[1719706728940,20.00345121,3379.9,3379.8,5.0711]
[1719706729440,20.00345121,3379.9,3379.8,7.14222]
[1719706730441,19.81331121,3379.9,3379.8,7.14222]
[1719706730644,19.81331121,3379.9,3379.8,7.69222]
[1719706733522,19.81331121,3379.9,3379.8,5.0711]
[1719706733848,19.81331121,3379.9,3379.8,2.0711]
[1719706736560,27.14131121,3379.9,3379.8,2.0711]
[1719706739270,19.81331121,3379.9,3379.8,2.0711]
[1719706740923,19.81331121,3379.9,3379.7,3.0]
[1719706741134,19.81331121,3379.9,3379.6,2.36239518]
[1719706741326,19.73986,3379.8,3379.6,2.36239518]
[1719706741743,0.07230844,3379.7,3379.6,2.36239518]
[1719706741925,19.73986,3379.8,3379.6,2.36239518]
[1719706742265,0.07230844,3379.7,3379.6,2.36239518]
[1719706742923,19.73986,3379.8,3379.6,2.36239518]
[1719706743258,0.07230844,3379.7,3379.6,2.36239518]
[1719706743619,19.73986,3379.8,3379.7,2.07118]
[1719706743818,19.81219239,3379.8,3379.7,2.07118]
[1719706745148,19.81219239,3379.8,3379.7,5.07118]
[1719706747634,19.81219239,3379.8,3379.7,7.14236]
[1719706749832,19.62308239,3379.8,3379.7,7.69236]
[1719706754640,19.62308239,3379.8,3379.7,8.72228046]
[1719706754842,19.55075,3379.8,3379.7,7.69236]
[1719706755063,19.55075,3379.8,3379.7,8.72228032]
[1719706755266,19.62307742,3379.8,3379.7,8.72228032]
[1719706757452,19.62307742,3379.8,3379.7,10.26720297]
[1719706757657,19.62307742,3379.8,3379.7,10.26710731]
[1719706757854,19.55075,3379.8,3379.7,10.26710731]
[1719706758242,19.62242408,3379.8,3379.7,10.26710731]
[1719706758660,19.62242408,3379.8,3379.7,5.07118]
[1719706758869,19.62242408,3379.8,3379.7,2.07118]
[1719706759056,19.62242408,3379.8,3379.7,5.07118]
[1719706760747,19.62242408,3379.8,3379.7,2.07118]
[1719706765780,19.62242408,3379.8,3379.5,5.36803469]
[1719706769181,19.62242408,3379.8,3379.6,2.07125]
[1719706771113,19.55075,3379.7,3379.6,2.07125]
[1719706771473,19.61964981,3379.7,3379.6,2.07125]
[1719706772408,7.1349,3379.6,3379.5,0.29678469]
[1719706772707,7.20376089,3379.6,3379.3,0.06845361]
[1719706772873,7.20376089,3379.6,3379.2,1.185227]
[1719706773201,19.55075,3379.5,3379.2,1.185227]
[1719706773369,0.06875688,3379.4,3379.2,1.185227]
[1719706774290,0.06875688,3379.4,3379.2,4.185227]
[1719706774513,0.06875688,3379.4,3379.2,5.73034973]
[1719706774677,0.06875688,3379.4,3379.2,6.02991991]
[1719706774884,0.06875688,3379.4,3379.2,5.73034973]
[1719706776988,19.55075,3379.3,3379.2,5.73034973]
[1719706777304,19.61943056,3379.3,3379.2,4.185227]
[1719706783420,19.61943056,3379.3,3379.2,8.328207]
[1719706783719,19.61943056,3379.3,3379.2,8.878207]
[1719706785588,19.61943056,3379.3,3379.2,4.185227]
[1719706794931,19.61943056,3379.3,3379.2,6.256717]
[1719706795310,19.61943056,3379.3,3379.2,8.328207]
[1719706796595,19.38892056,3379.3,3379.2,8.878207]
[1719706797209,19.38892056,3379.3,3379.2,17.37004345]
[1719706797500,19.38892056,3379.3,3379.2,16.340007]
[1719706797707,19.38892056,3379.3,3379.2,17.37004616]
[1719706799138,19.38892056,3379.3,3379.2,16.340007]
[1719706799342,19.38892056,3379.3,3379.2,17.37004163]
[1719706800034,17.94317056,3379.3,3379.2,19.44153163]
[1719706800201,17.94317056,3379.3,3379.2,21.60804362]
[1719706800607,17.94317056,3379.3,3379.2,20.98658358]
[1719706801204,17.94317056,3379.3,3379.2,21.60809262]
[1719706801405,17.94317056,3379.3,3379.2,21.60792401]
[1719706801634,17.94317056,3379.3,3379.2,20.98641497]
[1719706801834,17.94317056,3379.3,3379.2,21.60795641]
[1719706802614,17.94317056,3379.3,3379.2,20.98638836]
[1719706802817,17.94317056,3379.3,3379.2,21.91857843]
[1719706803039,17.94317056,3379.3,3379.2,20.98638836]
[1719706804206,17.94317056,3379.3,3379.2,24.07090595]
[1719706804406,17.45729441,3379.3,3379.2,26.22329598]
[1719706805039,17.45729441,3379.3,3379.2,26.22329296]
[1719706805436,17.45729441,3379.3,3379.2,24.07089805]
[1719706806705,17.45729441,3379.3,3379.2,21.91857355]
[1719706807026,17.45729441,3379.3,3379.2,24.07089878]
[1719706807427,17.45729441,3379.3,3379.2,23.13870871]
[1719706807748,17.45729441,3379.3,3379.2,23.13871433]
[1719706807955,17.45729441,3379.3,3379.2,24.0709044]
[1719706808445,17.45729441,3379.3,3379.2,23.13871433]
[1719706809947,17.45729441,3379.3,3379.2,21.06722433]
[1719706810249,17.45729441,3379.3,3379.2,10.9030991]
[1719706810446,17.45729441,3379.3,3379.2,11.52473007]
[1719706811819,17.45729441,3379.3,3379.2,12.07473007]
[1719706812629,17.45729441,3379.3,3379.2,9.90816384]
[1719706814060,17.45729441,3379.3,3379.2,9.90826167]
[1719706814353,17.45729441,3379.3,3379.2,8.878207]
[1719706814562,17.45729441,3379.3,3379.2,9.90826162]
[1719706816025,17.45729441,3379.3,3379.2,12.07500163]
[1719706816225,17.45729441,3379.3,3379.2,21.28739163]
[1719706816626,13.92146241,3379.3,3379.2,21.28739163]
[1719706816959,13.09166849,3379.3,3379.2,22.81771022]
[1719706817315,13.09166849,3379.3,3379.2,24.06102639]
[1719706818456,11.82346849,3379.3,3379.2,24.06102639]
[1719706818762,0.06868056,3379.3,3379.2,24.06102639]
[1719706819147,10.94003793,3379.9,3379.8,4.14224]
[1719706819453,10.94003793,3379.9,3379.8,7.69224]
[1719706819960,8.92689793,3379.9,3379.8,9.76336]
[1719706820131,8.92689793,3379.9,3379.8,12.95917548]
[1719706820331,8.92689793,3379.9,3379.8,11.41448127]
[1719706820529,8.92689793,3379.9,3379.8,12.95917548]
[1719706821142,8.92689793,3379.9,3379.8,10.79315614]
[1719706823661,8.99566087,3379.9,3379.8,7.69224]
[1719706824743,0.06876294,3379.9,3379.8,7.69224]
[1719706824944,8.92689793,3380.1,3380.0,2.071]
[1719706825166,8.92689793,3380.1,3380.0,5.621]
[1719706828153,8.92689793,3380.1,3380.0,7.692]
[1719706836164,8.92689793,3380.1,3380.0,9.763]
[1719706836392,8.92689793,3380.1,3380.0,16.6074]
[1719706836393,8.62524793,3380.1,3380.0,16.6074]
[1719706836714,0.10597686,3380.1,3380.0,17.63715019]
[1719706836863,8.62524793,3380.4,3380.3,4.14164]
[1719706837166,8.7313382,3380.4,3380.3,7.14164]
[1719706840211,7.7959782,3380.4,3380.3,7.69164]
[1719706840870,5.8941412,3380.4,3380.3,9.76246]
[1719706841055,5.8941412,3380.4,3380.3,10.79215032]
[1719706841252,5.8941412,3380.4,3380.3,18.15735032]
[1719706841895,5.8941412,3380.4,3380.3,18.77800003]
[1719706842122,2.0038012,3380.4,3380.3,20.84882003]
[1719706842394,2.0038012,3380.4,3380.3,25.51864732]
[1719706842395,1.7738012,3380.4,3380.3,25.51864732]
[1719706842577,0.10609027,3380.4,3380.3,25.82902456]
[1719706842769,0.56955358,3380.7,3380.6,6.21189]
[1719706842966,0.56955358,3380.7,3380.6,11.411935]
[1719706843299,0.56955358,3380.7,3380.6,10.79147555]
[1719706844758,0.56955358,3380.7,3380.6,10.79138521]
[1719706845259,6.86564358,3381.1,3381.0,4.14078]
[1719706845598,20.03545063,3381.1,3381.0,7.69078]
[1719706845916,19.52095063,3381.1,3381.0,9.76117]
[1719706848358,19.52095063,3381.1,3381.0,7.69078]
[1719706848862,19.15635063,3381.1,3381.0,7.69078]
[1719706849371,18.35635063,3381.1,3381.0,7.69078]
[1719706852764,18.35635063,3381.1,3381.0,8.875247]
[1719706854578,0.10545063,3381.1,3381.0,8.875247]
[1719706855010,6.86564358,3381.5,3381.3,2.07018]
[1719706859805,6.86564358,3381.5,3381.4,2.07014]
[1719706860003,6.86564358,3381.5,3381.4,5.07014]
[1719706860249,6.86564358,3381.5,3381.4,7.14028]
[1719706860423,6.86564358,3381.5,3381.4,7.69028]
[1719706860636,18.2509,3381.7,3381.6,2.07002]
[1719706860964,18.2509,3381.7,3381.6,7.69004]
[1719706861123,6.86564358,3382.1,3381.6,7.69004]
[1719706861124,6.86564358,3382.1,3382.0,2.06978]
[1719706861324,18.2509,3382.3,3382.0,2.06978]
[1719706862746,18.2509,3382.3,3382.2,2.06965]
[1719706862912,18.2509,3382.3,3382.2,7.6893]
[1719706865112,18.2509,3382.3,3382.2,3.55]
[1719706865311,18.2509,3382.3,3382.2,5.61965]
[1719706866412,18.2509,3382.6,3382.2,5.61965]
[1719706866607,0.09880563,3382.3,3382.2,5.61965]
[1719706866820,18.2509,3382.6,3382.2,5.61965]
[1719706867018,0.09880563,3382.3,3382.2,5.61965]
[1719706867224,18.2509,3382.6,3382.2,5.61965]
[1719706867427,0.09880563,3382.3,3382.2,5.61965]
[1719706867628,18.2509,3382.6,3382.2,5.61965]
[1719706867814,0.09881931,3382.3,3382.2,5.61965]
[1719706868028,18.2509,3382.6,3382.2,5.61965]
[1719706868226,0.09881931,3382.3,3382.2,5.61965]
[1719706868425,18.2509,3382.6,3382.2,5.61965]
[1719706868628,0.09883298,3382.3,3382.2,5.61965]
[1719706868848,18.2509,3382.6,3382.2,5.61965]
[1719706869445,0.09866516,3382.5,3382.2,5.61965]
[1719706870847,0.09866516,3382.5,3382.4,2.06953]
[1719706871748,0.09866516,3382.5,3382.4,4.68906]
[1719706872049,0.09866516,3382.5,3382.4,7.68906]
[1719706872740,18.2509,3382.9,3382.6,2.06937]
[1719706872918,18.2509,3383.0,3382.8,2.06929]
[1719706873114,6.86564358,3383.5,3383.4,2.06892]
[1719706873336,7.2588,3384.0,3383.4,2.06889]
[1719706873536,7.2588,3384.0,3383.5,2.06884]
[1719706873751,7.2588,3384.0,3383.5,3.0]
[1719706874051,7.2588,3384.0,3383.4,5.06889]
[1719706874251,7.2588,3384.0,3383.4,2.06889]
[1719706874562,6.86564358,3384.1,3383.5,0.60910083]
[1719706874722,6.86564358,3384.1,3383.5,0.55]
[1719706874923,6.86564358,3384.1,3383.8,2.06867]
[1719706875332,6.86564358,3384.1,3384.0,2.06855]
[1719706875845,18.2509,3384.3,3384.1,2.06847]
[1719706876013,18.2509,3384.3,3383.9,5.06861]
[1719706876014,18.2509,3384.6,3384.0,2.06851]
[1719706876352,18.2509,3384.6,3383.9,5.06861]
[1719706876646,18.2509,3384.6,3384.0,0.55]
[1719706876852,18.2509,3384.6,3384.0,3.55]
[1719706879747,18.2509,3384.6,3384.0,0.55]
[1719706880054,6.9718,3384.5,3383.8,3.0]
[1719706880217,6.9718,3384.5,3383.2,2.069]
[1719706880218,6.9718,3384.5,3383.2,5.069]
[1719706880550,25.2227,3384.5,3383.4,2.06888]
[1719706880848,3.00453685,3384.4,3383.5,2.61882]
[1719706881051,3.00453685,3384.4,3383.4,3.0]
[1719706881238,3.00453685,3384.4,3383.4,2.06887]
[1719706881442,3.00453685,3384.3,3383.4,2.06887]
[1719706881619,3.09751477,3384.3,3383.4,2.06887]
[1719706882042,3.09751477,3384.3,3383.3,3.0]
[1719706882347,3.09751477,3384.3,3383.1,6.9798]
[1719706882348,6.9718,3384.2,3383.1,6.9798]
[1719706882549,0.09289872,3384.1,3383.4,2.06891]
[1719706883318,0.09289872,3384.1,3383.6,2.06878]
[1719706885050,0.09289872,3384.1,3383.7,1.183613]
[1719706885349,0.09289872,3384.1,3383.7,4.183613]
[1719706886044,0.09289872,3384.1,3383.8,0.55]
[1719706886241,18.2509,3384.6,3383.9,2.0686]
[1719706886440,18.2509,3384.6,3384.0,0.55]
[1719706886641,18.2509,3384.6,3384.0,5.61853]
[1719706887635,18.2509,3384.6,3384.0,3.55]
[1719706887850,18.2509,3384.6,3384.0,0.55]
[1719706890131,18.2509,3384.6,3383.9,3.0]
[1719706890132,20.56731806,3384.6,3383.9,3.0]
[1719706890332,20.56731806,3384.6,3383.7,1.183613]
[1719706890572,20.56731806,3384.6,3383.7,3.252333]
[1719706890756,20.56731806,3384.6,3383.8,3.0]
[1719706891936,18.2509,3384.6,3383.8,5.06863]
[1719706894245,18.2509,3384.6,3383.9,2.06861]
[1719706894781,18.2509,3384.6,3383.8,3.0]
[1719706895468,18.2509,3384.6,3383.8,5.06867]
[1719706895634,18.2509,3384.6,3383.9,2.0686]
[1719706895835,18.2509,3384.6,3384.0,2.61854]
[1719706896040,18.2509,3384.6,3384.1,3.0]
[1719706896767,0.09127154,3384.5,3384.1,5.06848]
[1719706900693,0.09127154,3384.5,3384.2,0.05909523]
[1719706900893,0.09127154,3384.5,3384.3,2.61833]
[1719706901190,0.09127154,3384.5,3384.4,3.0]
[1719706902251,18.34217154,3384.5,3384.4,3.0]
[1719706902753,18.34217154,3384.5,3384.4,5.06831]
[1719706905787,18.34217154,3384.5,3384.4,7.13662]
[1719706905976,18.34217154,3384.5,3384.4,7.68662]
[1719706908185,0.09127154,3384.5,3384.4,5.61831]
[1719706911494,0.09127154,3384.5,3384.4,3.55]
[1719706912060,0.09127154,3384.5,3384.4,5.61831]
[1719706912879,0.09127154,3384.5,3384.4,7.68662]
[1719706913267,0.09127154,3384.5,3384.4,8.54362]
[1719706914780,30.5509,3385.0,3384.6,2.06818]
[1719706914983,18.2509,3385.0,3384.9,0.857]
[1719706915284,18.2509,3385.0,3384.7,3.0]
[1719706915491,18.2509,3385.0,3384.6,2.06813]
[1719706915687,18.2509,3385.0,3384.6,2.06818]
[1719706916089,18.2509,3385.3,3384.6,2.06818]
[1719706916301,18.2509,3385.3,3384.9,2.06799]
[1719706918682,18.2509,3385.3,3385.1,2.06788]
[1719706919277,18.2509,3385.3,3385.2,2.06782]
[1719706919484,18.2509,3385.3,3385.2,5.61782]
[1719706920017,18.2509,3385.3,3385.2,7.68564]
[1719706920216,7.1652,3386.0,3385.4,2.06768]
[1719706920217,25.11654358,3385.9,3385.4,2.06768]
[1719706920379,18.2509,3385.9,3385.4,2.06768]
[1719706920684,18.2509,3385.9,3385.5,2.06764]
[1719706920880,6.98355958,3386.3,3386.2,2.06721]
[1719706921105,0.117916,3386.3,3386.2,2.61721]
[1719706921307,14.03084358,3386.9,3386.2,5.61721]
[1719706921515,14.03084358,3386.9,3386.3,3.55]
[1719706922220,7.1652,3386.9,3386.4,2.06704]
[1719706923221,7.1652,3386.9,3386.3,3.55]
[1719706923391,10.16973685,3386.9,3386.3,3.55]
[1719706923591,7.1652,3386.9,3386.3,0.55]
[1719706923798,7.1652,3386.9,3386.0,0.55]
[1719706924100,44.58174358,3387.2,3386.3,2.06712]
[1719706924409,17.03538043,3387.2,3386.4,0.55]
[1719706924613,14.03084358,3387.2,3386.4,3.55]
[1719706925010,14.03084358,3387.2,3386.5,3.0]
[1719706925321,7.1652,3387.1,3386.2,3.0]
[1719706925537,7.1652,3387.1,3385.9,2.06739]
[1719706925538,8.56828436,3387.1,3385.9,2.06739]
[1719706925717,8.56828436,3387.1,3386.0,0.55]
[1719706926025,8.56828436,3387.1,3386.1,2.06726]
[1719706926224,1.54339279,3387.0,3386.2,0.55]
[1719706926392,1.54339279,3387.0,3386.2,3.55]
[1719706926596,0.0864595,3386.9,3386.2,3.55]
[1719706927625,0.0864595,3386.9,3386.2,3.0]
[1719706927626,7.1652,3386.8,3386.2,3.0]
[1719706927812,7.32818523,3386.8,3385.9,2.06738]
[1719706928127,0.08621074,3386.7,3386.0,0.55]
[1719706928298,0.08621074,3386.7,3386.0,3.55]
[1719706930229,0.08621074,3386.7,3386.1,2.06725]
[1719706930430,0.08621074,3386.7,3386.2,0.55]
[1719706930596,0.08621074,3386.7,3386.2,3.55]
[1719706930994,1.34716476,3386.7,3386.3,3.0]
[1719706931202,1.34716476,3386.7,3386.1,3.0]
[1719706931408,1.34716476,3386.7,3385.8,2.06744]
[1719706931662,1.34716476,3386.7,3386.2,1.182832]
[1719706933359,7.1652,3386.5,3386.2,1.182832]
[1719706933641,0.08624183,3386.4,3385.9,0.55]
[1719706933844,0.08624183,3386.4,3386.0,1.182891]
[1719706934028,2.82917616,3386.4,3386.0,1.182891]
[1719706934339,2.82917616,3386.4,3385.8,0.13]
[1719706934541,2.82917616,3386.4,3385.9,1.18293]
[1719706935846,2.82917616,3386.4,3385.8,0.13]
[1719706936155,0.41726309,3386.3,3385.9,1.182956]
[1719706936358,0.08613749,3386.2,3385.9,1.182956]
[1719706936545,0.41726309,3386.3,3385.9,1.182956]
[1719706936852,0.08613749,3386.2,3385.9,1.182956]
[1719706937054,2.20941067,3386.2,3385.8,0.13]
[1719706937262,2.12327318,3386.2,3385.8,0.13]
[1719706937421,0.08607891,3386.1,3385.8,1.312994]
[1719706940849,0.08607891,3386.1,3386.0,2.06733]
[1719706941046,18.2509,3386.2,3386.0,2.61733]
[1719706941255,18.2509,3386.2,3386.1,3.55]
[1719706941673,18.33180806,3386.2,3386.1,3.55]
[1719706941870,18.33180806,3386.2,3386.1,5.61727]
[1719706943836,0.08090806,3386.2,3386.1,5.61727]
[1719706944377,6.9782,3386.8,3386.2,2.06719]
[1719706944584,6.9782,3386.8,3386.3,0.55]
[1719706944787,6.9782,3386.8,3386.3,3.55]
[1719706945772,18.2509,3387.0,3386.3,3.55]
[1719706950977,18.2509,3387.0,3386.4,2.06705]
[1719706951275,18.2509,3387.0,3386.6,2.06695]
[1719706951455,18.2509,3387.0,3386.7,0.55]
[1719706951894,18.2509,3387.0,3386.7,3.55]
[1719706952280,6.86564358,3387.5,3386.8,2.06684]
[1719706952482,6.86564358,3387.5,3386.9,0.55]
[1719706952655,6.86564358,3387.5,3386.9,3.55]
[1719706953453,6.86564358,3387.5,3387.0,3.0]
[1719706953709,6.86564358,3387.5,3386.9,0.55]
[1719706953910,6.86564358,3387.5,3386.8,0.55]
[1719706955649,6.86564358,3387.5,3386.9,7.0519]
[1719706955848,12.3,3387.8,3387.2,2.06658]
[1719706955849,19.16564358,3387.8,3387.2,2.06658]
[1719706956202,19.16564358,3387.8,3387.3,0.55]
[1719706956504,0.08152297,3387.7,3387.3,3.55]
[1719706956645,0.08152297,3387.7,3387.3,5.61654]
[1719706956852,6.86564358,3388.1,3387.4,0.05904077]
[1719706957080,6.86564358,3388.1,3387.5,0.55]
[1719706957287,18.2509,3388.2,3387.5,3.55]
[1719706957480,7.474,3388.1,3387.5,3.0]
[1719706957672,7.474,3388.1,3387.2,2.06655]
[1719706957872,7.474,3388.1,3387.3,0.55]
[1719706958059,7.474,3388.1,3387.3,3.55]
[1719706958880,7.474,3388.1,3387.3,3.0]
[1719706959080,10.47853685,3388.1,3386.8,5.06683]
[1719706959381,7.474,3388.1,3386.9,0.55]
[1719706959563,7.474,3388.1,3386.9,3.55]
[1719706960289,10.47853685,3388.1,3386.9,3.55]
[1719706960652,10.47853685,3388.1,3386.9,0.55]
[1719706960653,7.1563,3388.0,3386.9,0.55]
[1719706965873,7.1563,3388.0,3387.0,6.9916]
[1719706966193,7.1563,3388.0,3387.1,3.55]
[1719706967476,7.1563,3388.0,3387.2,1.182413]
[1719706969305,18.2509,3388.2,3387.2,1.182413]
[1719706969493,18.2509,3388.2,3387.4,2.06645]
[1719706969675,18.2509,3388.2,3387.5,0.55]
[1719706969871,7.1563,3388.3,3387.5,0.55]
[1719706970076,7.1563,3388.3,3387.5,3.55]
[1719706970681,7.1563,3388.3,3387.5,0.55]
[1719706970881,7.1563,3388.3,3387.4,0.55]
[1719706971725,0.08170366,3388.2,3387.4,2.06647]
[1719706971903,0.08170366,3388.2,3387.5,0.55]
[1719706972105,0.08170366,3388.2,3387.5,3.55]
[1719706973526,0.08170366,3388.2,3387.6,3.0]
[1719706973527,3.08624051,3388.2,3387.6,3.0]
[1719706973725,3.08624051,3388.2,3387.5,0.55]
[1719706973931,0.08170366,3388.2,3387.4,0.55]
[1719706976516,0.08170366,3388.2,3387.4,2.61646]
[1719706976720,0.08170366,3388.2,3387.5,3.0]
[1719706977254,0.08170366,3388.2,3387.5,5.06641]
[1719706977432,0.08170366,3388.2,3387.6,0.55]
[1719706978138,0.08170366,3388.2,3387.7,2.06625]
[1719706978312,0.08170366,3388.2,3387.8,0.55]
[1719706978515,0.08170366,3388.2,3387.8,3.55]
[1719706978737,7.1563,3388.3,3387.8,3.55]
[1719706978932,0.08170487,3388.1,3387.8,3.55]
[1719706979135,0.08175616,3388.2,3387.8,3.55]
[1719706979315,0.08168089,3388.0,3387.8,3.55]
[1719706979516,7.1563,3388.3,3387.9,3.0]
[1719706979845,7.1563,3388.3,3387.6,3.0]
[1719706980044,7.1563,3388.3,3387.3,5.06653]
[1719706980246,0.08178769,3388.2,3387.4,0.55]
[1719706980421,0.08178769,3388.2,3387.4,3.55]
[1719706980629,0.08178769,3388.2,3387.5,2.06641]
[1719706980856,0.08178769,3388.2,3387.6,0.55]
[1719706981035,0.08178769,3388.2,3387.5,5.06641]
[1719706981036,0.08178769,3388.2,3387.5,3.0]
[1719706981238,0.08178769,3388.2,3387.2,1.182413]
[1719706981451,7.0941,3388.0,3387.2,4.182413]
[1719706981655,7.0941,3388.0,3387.2,1.182413]
[1719706981828,0.08170653,3387.9,3387.2,1.182413]
[1719706990256,0.08170653,3387.9,3387.2,1.152413]
[1719706996281,0.88478718,3387.9,3387.2,1.152413]
[1719706998261,0.08170653,3387.9,3387.3,0.855]
[1719706999649,0.08170653,3387.9,3387.4,0.55]
[1719707002248,0.08170653,3387.9,3387.5,0.855]
[1719707002448,0.08170653,3387.9,3387.6,0.55]
[1719707002789,7.3925,3388.3,3387.6,0.55]
[1719707002986,0.0817628,3387.8,3387.6,3.55]
[1719707003152,7.3925,3388.3,3387.6,3.55]
[1719707003480,0.081538,3387.7,3387.6,3.55]
[1719707003681,7.3925,3388.3,3387.6,3.55]
[1719707003892,7.3925,3388.3,3387.7,0.855]
[1719707004079,7.3925,3388.3,3387.8,0.55]
[1719707006403,6.86564358,3388.4,3387.8,0.55]
[1719707006714,8.2475,3388.6,3387.8,3.55]
[1719707007894,7.3925,3388.6,3388.1,0.855]
[1719707008300,6.86564358,3388.7,3388.1,0.91402829]
[1719707008510,6.86564358,3388.7,3388.2,0.55]
[1719707008721,25.6434,3388.9,3388.2,0.55]
[1719707010983,0.855,3388.8,3388.0,3.0]
[1719707011309,0.855,3388.8,3387.8,0.855]
[1719707012291,18.2509,3389.0,3387.7,3.0]
[1719707012491,18.2509,3389.0,3387.3,0.29738733]
[1719707012492,7.3925,3388.3,3387.3,3.29738733]
[1719707012691,7.3925,3388.3,3387.5,0.855]
[1719707013427,7.3925,3388.3,3387.3,3.0]
[1719707014205,7.3925,3388.3,3387.4,0.55]
[1719707016507,0.08214151,3388.2,3387.4,0.55]
[1719707017041,7.2247,3388.1,3387.4,0.55]
[1719707017201,7.2247,3388.1,3387.2,1.152413]
[1719707017202,7.2247,3388.1,3387.3,0.55]
[1719707017405,0.08204608,3388.0,3387.2,1.152413]
[1719707017643,0.81272069,3388.0,3387.2,1.152413]
[1719707018931,7.2247,3387.9,3387.2,1.152413]
[1719707019136,7.30670845,3387.9,3387.2,1.152413]
[1719707028280,7.30670845,3387.9,3387.3,0.55]
[1719707033751,7.30670845,3387.9,3387.3,1.405]
[1719707033950,7.30670845,3387.9,3387.3,4.405]
[1719707034646,7.30670845,3387.9,3387.3,3.55]
[1719707034845,7.30670845,3387.9,3387.3,0.55]
[1719707036062,0.855,3387.8,3387.2,4.152413]
[1719707036262,8.1228793,3387.9,3387.2,1.152413]
[1719707036583,0.08179068,3387.8,3387.3,3.0]
[1719707036784,0.08179068,3387.8,3387.2,5.007413]
[1719707037472,0.08179068,3387.8,3387.3,0.55]
[1719707040510,7.0747,3387.6,3387.2,1.152413]
[1719707040652,7.0747,3387.6,3387.0,3.0]
[1719707040653,7.0747,3387.6,3386.8,0.855]
[1719707040857,7.0747,3387.6,3387.1,1.182514]
[1719707041188,7.0747,3387.6,3386.8,0.855]
[1719707041189,0.08168007,3387.5,3386.8,0.855]
[1719707041598,0.08168007,3387.5,3386.9,1.182515]
[1719707044607,0.08168007,3387.5,3386.9,2.037515]
[1719707047222,0.08168007,3387.5,3387.2,0.855]
[1719707050199,0.08168007,3387.5,3387.2,3.855]
[1719707050400,0.08168007,3387.5,3387.4,0.855]
[1719707050616,18.2509,3387.7,3387.4,4.405]
[1719707050820,18.2509,3387.7,3387.6,0.855]
[1719707051031,18.2509,3387.7,3387.6,1.405]
[1719707051320,7.0747,3387.9,3387.6,1.405]
[1719707051887,6.86564358,3388.0,3387.8,0.855]
[1719707052724,7.0747,3388.4,3387.8,0.855]
[1719707053831,7.0747,3388.4,3387.9,0.55]
[1719707056004,7.0747,3388.4,3387.8,0.55]
[1719707060304,7.0747,3388.4,3387.7,3.0]
[1719707060506,8.55423436,3388.4,3387.5,3.855]
[1719707061610,0.08111743,3388.3,3387.5,3.855]
[1719707063203,0.08111743,3388.3,3387.5,3.0]
[1719707063449,0.08111743,3388.3,3387.7,0.855]
[1719707063730,0.08111743,3388.3,3387.9,0.855]
[1719707067133,0.08111743,3388.3,3387.8,3.55]
[1719707067335,0.08111743,3388.3,3387.8,1.405]
[1719707070455,6.9844,3388.2,3387.7,3.0]
[1719707070657,6.9844,3388.2,3387.6,0.855]
[1719707070860,0.08102578,3388.1,3387.6,0.855]
[1719707071862,6.9844,3388.0,3387.3,3.0]
[1719707072060,6.9844,3388.0,3387.0,7.2661]
[1719707072061,6.9844,3388.0,3387.1,3.855]
[1719707072264,0.08101609,3387.9,3387.1,3.855]
[1719707072474,0.08101609,3387.9,3387.3,0.855]
[1719707073169,0.08101609,3387.9,3387.4,0.55]
[1719707080364,0.08101609,3387.9,3387.5,0.855]
[1719707080559,6.9827,3387.8,3387.1,3.0]
[1719707080762,0.08087148,3387.7,3387.6,0.855]
[1719707080965,6.86564358,3388.5,3387.7,2.06629]
[1719707081270,6.86564358,3388.5,3388.0,0.855]
[1719707081271,0.07841234,3388.4,3388.0,0.855]
[1719707081446,0.07841234,3388.4,3388.1,0.55]
[1719707085563,0.07841234,3388.4,3388.2,2.92097]
[1719707085857,0.07841234,3388.4,3388.3,0.55]
[1719707086169,0.07841234,3388.4,3388.3,3.55]
[1719707088603,0.02841234,3388.4,3388.3,3.55]
[1719707088908,0.07678224,3388.4,3388.3,3.55]